Cogmind - Beta 10.2 @@@ ROGUE MODE // 2021.05.12 @ 16:34:34 // Winter2019/RPGLIKE Player: mithc Result: Destroyed by G-47 Trooper with Particle Gun Performance ------------- Evolutions (2) 1000 Regions Visited (9) 1800 Robots Destroyed (173) 865 Value Destroyed (5219) 5219 Prototype IDs (11) 220 Alien Tech Used (0) 0 Bonus (1458) 1458 TOTAL SCORE: 10562 Bonus ------- High Alert Combat Kills 719 Follower Combat Kills 39 Entered Garrisons 200 Used RIF Installer 500 Cogmind --------- Core Integrity 0/800 Matter 202/300 Energy 311/315 System Corruption 0% Temperature Cool (13) Movement Flying (27) Location -8/Materials Parts ------- > --- POWER (2) -------- Improved Ion Engine Micro Nuclear Core > --- PROPULSION (4) --- Flight Unit Improved Flight Unit Improved Flight Unit Improved Flight Unit > --- UTILITY (8) ------ Advanced Signal Interpreter ECM Suite Hacking Suite Hacking Suite Hacking Suite Hacking Suite Relay Coupler [Swarmer] (5) Relay Coupler [Duelist] (42) > --- WEAPON (2) ------- Advanced Beam Cannon Improved Grenade Launcher > --- INVENTORY (4) ---- Relay Coupler [Duelist] (62) Relay Coupler [Sentry] (46) Ion Cannon Improved Datajack Peak State ------------ > --- POWER ------------ Improved Ion Engine Micro Nuclear Core > --- PROPULSION ------- Improved Flight Unit Improved Flight Unit Improved Flight Unit Xenon Bombardment Thruster > --- UTILITY ---------- Advanced Signal Interpreter ECM Suite Hacking Suite Hacking Suite Hacking Suite Hacking Suite Relay Coupler [Swarmer] Relay Coupler [Duelist] > --- WEAPON ----------- Ion Cannon Improved Datajack > --- INVENTORY -------- Relay Coupler [Duelist] Relay Coupler [Sentry] Advanced Beam Cannon Improved Grenade Launcher [Rating: 48] Favorites ----------- Power Light Nuclear Core Engine Light Ion Engine Power Core Light Nuclear Core Propulsion Improved Flight Unit Wheel Compact Wheel Hover Unit Improved Hover Unit Flight Unit Improved Flight Unit Utility Hacking Suite Device ECM Suite Processor Signal Interpreter Hackware Hacking Suite Weapon Beam Cannon Energy Gun Particle Gun Energy Cannon Beam Cannon Launcher Improved Grenade Launcher Slashing Weapon Katana Special Melee Weapon Improved Datajack Build | -11 -10 -10 -9 -9 -9 -8 -8 -8 -8 ------- Run | Scr Mat Min Mat Min Exi Min Mat Gar Mat Slots Evolved 12 | . 4 . 4 1 . . 1 2 . Power 1 | . . . 1 . . . . . . Propulsion 3 | . 1 . 2 . . . . . . Utility 7 | . 2 . 1 1 . . 1 2 . Weapon 1 | . 1 . . . . . . . . Parts Attached 60 | 3 13 . 16 3 . 1 9 13 2 Power 6 | 1 1 . 1 1 . 1 . 1 . Engine 3 | 1 . . 1 . . . . 1 . Core 3 | . 1 . . 1 . 1 . . . Reactor . | . . . . . . . . . . Propulsion 11 | 1 4 . 4 1 . . . 1 . Treads . | . . . . . . . . . . Leg . | . . . . . . . . . . Wheel 1 | 1 . . . . . . . . . Hover 4 | . 4 . . . . . . . . Flight 6 | . . . 4 1 . . . 1 . Utility 12 | . 5 . 2 1 . . 2 2 . Device 3 | . 3 . . . . . . . . Storage . | . . . . . . . . . . Processor 3 | . 1 . 1 . . . 1 . . Hackware 6 | . 1 . 1 1 . . 1 2 . Protection . | . . . . . . . . . . Artifact . | . . . . . . . . . . Weapon 31 | 1 3 . 9 . . . 7 9 2 Energy Gun 5 | 1 . . 4 . . . . . . Energy Cannon 16 | . 3 . 3 . . . 4 5 1 Ballistic Gun . | . . . . . . . . . . Ballistic Cannon . | . . . . . . . . . . Launcher 5 | . . . . . . . 3 1 1 Special Weapon . | . . . . . . . . . . Impact Weapon . | . . . . . . . . . . Slashing Weapon 1 | . . . 1 . . . . . . Piercing Weapon . | . . . . . . . . . . Special Melee Weapon 4 | . . . 1 . . . . 3 . Unidentified Prototypes 2 | . . . 2 . . . . . . Parts Lost 3 | . . . 1 . . . . 2 . Power 1 | . . . . . . . . 1 . Propulsion 1 | . . . . . . . . 1 . Utility . | . . . . . . . . . . Weapon 1 | . . . 1 . . . . . . Highest Loss Streak 1 | . . . 1 . . . . 1 . Average Slot Usage (%) 99 | . 98 100 99 100 100 100 100 99 100 Engine 2 | . 2 . 4 . . . . 4 6 Core 11 | . 12 12 9 14 15 15 14 8 6 Hover 10 | . 23 25 9 . . . . . . Flight 15 | . . . 19 31 30 30 28 26 25 Device 11 | . 19 12 9 7 7 7 7 6 6 Processor 8 | . 8 12 9 7 7 7 7 6 6 Hackware 16 | . . 12 18 20 23 23 27 31 37 Energy Gun 2 | . 4 . 5 . . . . . . Energy Cannon 16 | . 22 25 12 15 15 15 13 10 9 Naked Turns . | . . . . . . . . . . Heaviest Build 26 | 5 15 13 17 20 20 20 20 24 26 Greatest Support 30 | 16 21 21 29 30 30 30 30 30 27 Greatest Overweight (x) 1 | 1 . . 1 . . . . 1 . Average Overweight (x) . | . . . . . . . . . . Largest Inventory Capacity 4 | . 2 2 3 3 3 3 3 4 4 Average Capacity 2 | . 1 2 2 3 3 3 3 3 4 Most Carried 4 | . 2 2 3 3 3 3 3 4 4 Average Carried 2 | . 1 2 2 3 3 2 2 3 4 Final Capacity 4 | . 2 2 3 3 3 3 3 4 4 Final Carried 4 | . 2 2 3 3 3 3 3 4 4 Class Distribution -------------------- 35% | Mutant 29% | Hacker-Sprinter 23% | Wizard-Sprinter 11% | Hacker-Mutant Dominant Class ---------------- Mutant | -10/Materials Mutant | -10/Mines Hacker-Sprinter | -9/Materials Hacker-Sprinter | -9/Mines Hacker-Sprinter | -9/Exiles Hacker-Sprinter | -8/Mines Wizard-Sprinter | -8/Materials Wizard-Sprinter | -8/Garrison Wizard-Sprinter | -8/Materials Resources | -11 -10 -10 -9 -9 -9 -8 -8 -8 -8 ----------- Run | Scr Mat Min Mat Min Exi Min Mat Gar Mat Matter Collected 899 | 230 158 18 160 30 . 10 155 123 15 Remotely . | . . . . . . . . . . Salvage Created 5096 | . 616 661 1656 125 . 304 1241 444 49 Parts 342 | . 55 39 124 12 . 10 71 21 10 Haulers Intercepted 8 | . 1 . 5 . . . 2 . . Recyclers Shooed 1 | . . . 1 . . . . . . Parts Field Recycled . | . . . . . . . . . . Retrieved Matter . | . . . . . . . . . . Parts Self-Destructed . | . . . . . . . . . . Prevented . | . . . . . . . . . . Kills | -11 -10 -10 -9 -9 -9 -8 -8 -8 -8 ------- Run | Scr Mat Min Mat Min Exi Min Mat Gar Mat Combat Hostiles Destroyed 124 | . 11 11 40 8 . 7 31 13 3 Guns 15 | . 2 . 13 . . . . . . Cannons 87 | . 8 8 24 8 . 7 22 10 . AOE 17 | . 1 2 2 . . . 7 2 3 Classes Destroyed 15 | . 9 . 3 1 . 1 . 1 . Worker 15 | . 7 1 5 . . 1 . . 1 Builder 5 | . 2 1 1 . . . . . 1 Tunneler 3 | . 1 2 . . . . . . . Hauler 8 | . 1 . 5 . . . 2 . . Recycler 5 | . 2 2 1 . . . . . . Operator 4 | . 1 . 2 . . . 1 . . Watcher 11 | . 3 . 5 . . . 2 . 1 Swarmer 40 | . 6 3 7 3 . 4 9 5 3 Grunt 51 | . 5 8 19 3 . 2 11 3 . Brawler 2 | . . . . . . 1 1 . . Duelist 3 | . . . 3 . . . . . . Protector 1 | . . . 1 . . . . . . Sentry 22 | . . . 10 . . . 10 2 . Hunter 3 | . . . . . . . . 3 . Assembled 2 | . . . . 2 . . . . . Best Kill Streak 6 | . 5 6 5 4 . 4 5 4 5 Combat Bots Only 5 | . 3 5 5 4 . 4 4 4 3 Max Kills in Single Turn 5 | . 3 1 2 1 . 2 3 2 5 Gunslinging . | . . . . . . . . . . Exploded 3 | . 1 1 1 . . . 3 2 3 Melee . | . . . . . . . . . . Uniques/NPCs Destroyed . | . . . . . . . . . . Combat | -11 -10 -10 -9 -9 -9 -8 -8 -8 -8 -------- Run | Scr Mat Min Mat Min Exi Min Mat Gar Mat Damage Taken 5350 | . 416 284 1782 336 . 208 1167 1044 113 Core 4380 | . 337 236 1462 284 . 161 947 865 88 Absorbed by Shields 6 | . . . . . . . . 6 . Redirected to Core 3285 | . 254 161 1105 166 . 148 744 619 88 Core Remaining (%) 80 | 100 . 80 . . . 62 . . . Volleys Fired 580 | . 187 39 178 18 . 22 87 42 7 Largest 2 | . 2 2 2 2 . 2 2 2 2 Hottest 136 | . 116 116 136 136 . 136 136 136 128 Shots Fired 977 | . 207 76 356 36 . 44 169 81 8 Gun 130 | . 16 . 114 . . . . . . Cannon 835 | . 191 76 242 36 . 44 164 80 2 Launcher 12 | . . . . . . . 5 1 6 Special . | . . . . . . . . . . Kinetic . | . . . . . . . . . . Thermal 868 | . 162 37 343 36 . 44 164 80 2 Explosive 12 | . . . . . . . 5 1 6 Electromagnetic 97 | . 45 39 13 . . . . . . Robot Hit Streak 16 | . 13 14 14 4 . 6 16 7 7 Robot Miss Streak 7 | . 4 2 7 3 . 3 3 3 . Penetration Max . | . . . . . . . . . . Secondary Targets . | . . . . . . . . . . Shots Hit Robots 503 | . 39 43 207 15 . 25 114 58 2 Core Hits 221 | . 32 20 76 10 . 10 46 19 8 Critical Hits 9 | . 2 . . . . 1 3 2 1 Critical Kills 4 | . 2 . . . . . 1 . 1 Critical Parts Destroyed 5 | . . . . . . 1 2 2 . Melee Attacks 15 | . . . 3 . . . . 12 . Impact . | . . . . . . . . . . Slashing 3 | . . . 3 . . . . . . Piercing . | . . . . . . . . . . Sneak Attacks . | . . . . . . . . . . Combat Hostiles . | . . . . . . . . . . Follow-up Attacks . | . . . . . . . . . . Damage Inflicted 11917 | . 1360 1051 4079 311 . 557 2857 1251 451 Guns 1347 | . 202 . 1145 . . . . . . Cannons 8243 | . 578 904 2556 311 . 557 2269 1047 21 Explosions 2326 | . 580 147 377 . . . 588 204 430 Melee . | . . . . . . . . . . Ramming 1 | . . . 1 . . . . . . Kinetic . | . . . . . . . . . . Thermal 8916 | . 492 393 3826 311 . 557 2269 1047 21 Explosive 1611 | . 389 . . . . . 588 204 430 Electromagnetic 1389 | . 479 658 252 . . . . . . Impact . | . . . . . . . . . . Slashing . | . . . . . . . . . . Piercing . | . . . . . . . . . . Highest Corruption 3 | . 3 3 . . . . . . . Average Corruption 2 | . 2 3 . . . . . . . Corruption Purged . | . . . . . . . . . . Effects 26 | . 17 9 . . . . . . . Message Errors 6 | . 5 1 . . . . . . . Matter Fused 6 | . 4 2 . . . . . . . Heat Flow Errors 2 | . 1 1 . . . . . . . Data Loss (minor) 3 | . 1 2 . . . . . . . Targeting Errors 7 | . 6 1 . . . . . . . Weapon Failures 2 | . . 2 . . . . . . . Overload Shots . | . . . . . . . . . . Overflow Damage 309 | . 121 5 146 1 . 2 20 . 14 Projectiles 61 | . . 5 51 1 . 2 2 . . Explosions 248 | . 121 . 95 . . . 18 . 14 Melee . | . . . . . . . . . . Knockbacks . | . . . . . . . . . . Impact . | . . . . . . . . . . Kinetic . | . . . . . . . . . . Secondary . | . . . . . . . . . . Self-Inflicted Damage 205 | . 39 41 125 . . . . . . Shots 6 | . 1 1 4 . . . . . . Rammed 1 | . . . 1 . . . . . . Targets Rammed 1 | . . . 1 . . . . . . Kicked . | . . . . . . . . . . Crushed . | . . . . . . . . . . Highest Temperature 333 | . 152 128 114 138 . 261 333 236 12 Average Temperature 56 | . 62 19 22 49 . 112 78 64 8 Received Heat Transfer 1404 | . 93 114 423 45 . 72 450 144 63 Siege Activations . | . . . . . . . . . . Robots Corrupted 2 | . . 1 1 . . . . . . Combat Hostiles 2 | . . 1 1 . . . . . . Parts Fried 6 | . 1 5 . . . . . . . Impact Corruptions . | . . . . . . . . . . Robots Melted 3 | . . . . . . . 2 1 . Combat Hostiles 3 | . . . . . . . 2 1 . Parts Melted 31 | . . . 17 1 . . 7 6 . Heat Transferred 16687 | . 879 668 7706 555 . 999 4107 1736 37 Parts Sabotaged . | . . . . . . . . . . Parts Stolen . | . . . . . . . . . . Parts Stripped . | . . . . . . . . . . Power Chain Reactions 7 | . 1 2 4 . . . . . . Missiles Intercepted . | . . . . . . . . . . Alert | -11 -10 -10 -9 -9 -9 -8 -8 -8 -8 ------- Run | Scr Mat Min Mat Min Exi Min Mat Gar Mat Peak Influence 1158 | . 547 582 1105 646 . 210 1158 758 598 Initial 370 | . . 202 182 370 . . 81 209 369 Average 455 | . 312 451 591 522 . 104 499 486 478 Maximum Alert Level 4 | . 2 2 4 2 . 1 4 3 2 Low Security (%) 15 | 100 30 . 8 . . 66 15 . . Level 1 26 | . 32 26 18 17 . 33 33 31 30 Level 2 41 | . 37 73 35 82 . . 24 57 69 Level 3 14 | . . . 37 . . . 18 10 . Level 4 1 | . . . . . . . 7 . . Level 5 . | . . . . . . . . . . High Security . | . . . . . . . . . . Max Security . | . . . . . . . . . . Squads Dispatched 8 | . 1 . 4 . . . 2 . 1 Investigation 1 | . . . . . . . 1 . . Extermination . | . . . . . . . . . . Reinforcement 6 | . 1 . 3 . . . 1 . 1 Assault 1 | . . . 1 . . . . . . Garrison . | . . . . . . . . . . Intercept . | . . . . . . . . . . Construction Impeded 2 | . . . 1 . . . . . 1 Haulers Reinforced . | . . . . . . . . . . Stealth | -11 -10 -10 -9 -9 -9 -8 -8 -8 -8 --------- Run | Scr Mat Min Mat Min Exi Min Mat Gar Mat Distress Signals 9 | . 1 . 3 . . . 4 . 1 Communications Jammed . | . . . . . . . . . . Distress Signals . | . . . . . . . . . . Times Spotted 279 | . 25 13 97 25 . 10 69 27 13 Peak Tracking Total 12 | . 3 3 10 12 . 4 7 4 7 Tactical Retreats 44 | . 6 2 17 3 . 1 11 2 2 Traps | -11 -10 -10 -9 -9 -9 -8 -8 -8 -8 ------- Run | Scr Mat Min Mat Min Exi Min Mat Gar Mat Traps Triggered 7 | . 2 . . . . . 2 3 . Indirectly . | . . . . . . . . . . Trap Hack Attempts 18 | . . . 6 . . . . 12 . Triggered 1 | . . . . . . . . 1 . Disarmed 10 | . 10 . . . . . . . . Reprogrammed 2 | . . . 1 . . . . 1 . Reused . | . . . . . . . . . . Traps Extracted . | . . . . . . . . . . Installed . | . . . . . . . . . . Triggered . | . . . . . . . . . . Machines | -11 -10 -10 -9 -9 -9 -8 -8 -8 -8 ---------- Run | Scr Mat Min Mat Min Exi Min Mat Gar Mat Machines Disabled 44 | . 28 6 4 2 . . 1 3 . Max in Single Turn 2 | . 2 1 2 1 . . 1 1 . Garrison Relay 3 | . . . . . . . . 3 . Machines Sabotaged . | . . . . . . . . . . Garrisons Compromised . | . . . . . . . . . . Overloaded Fab Kills . | . . . . . . . . . . Fab Network Shutdowns . | . . . . . . . . . . Hacking | -11 -10 -10 -9 -9 -9 -8 -8 -8 -8 --------- Run | Scr Mat Min Mat Min Exi Min Mat Gar Mat Machines Accessed 35 | . 8 . 11 1 . 1 12 . 2 Terminals 30 | . 7 . 10 . . 1 10 . 2 Fabricators . | . . . . . . . . . . Repair Stations 2 | . . . 1 . . . 1 . . Recycling Units 1 | . 1 . . . . . . . . Scanalyzers . | . . . . . . . . . . Garrison Access 1 | . . . . . . . 1 . . Total Hacks 132 | . 28 . 53 1 . 2 44 . 4 Successful 117 | . 19 . 47 1 . 2 44 . 4 Failed 14 | . 9 . 5 . . . . . . Catastrophic . | . . . . . . . . . . Database Lockouts 1 | . . . 1 . . . . . . Manual 62 | . 12 . 17 . . 1 28 . 4 Terminals 124 | . 25 . 52 . . 2 41 . 4 Fabricators . | . . . . . . . . . . Repair Stations 2 | . . . 1 . . . 1 . . Recycling Units 3 | . 3 . . . . . . . . Scanalyzers . | . . . . . . . . . . Garrison Access 2 | . . . . . . . 2 . . Terminal Hacks 67 | . 10 . 30 1 . 1 25 . . Record 10 | . 3 . 7 . . . . . . Robot Analysis 3 | . . . 2 . . . 1 . . Prototype ID Bank 7 | . 1 . 2 . . . 4 . . Open Door 1 | . . . . 1 . . . . . Branch Access Points 2 | . . . . . . . 2 . . Emergency Access Points 2 | . . . 1 . . . 1 . . Alert Level 6 | . . . 5 . . . 1 . . Unreport Threat 12 | . . . 5 . . . 7 . . Locate Traps 10 | . 3 . 4 . . . 3 . . Disarm Traps 2 | . 2 . . . . . . . . Maintenance Status 1 | . . . . . . . 1 . . Hauler Manifests 1 | . . . 1 . . . . . . Registered Components 1 | . . . . . . . 1 . . Registered Prototypes 1 | . . . . . . . 1 . . Zone Layout 8 | . 1 . 3 . . 1 3 . . Fabricator Hacks . | . . . . . . . . . . Repair Station Hacks . | . . . . . . . . . . Recycling Unit Hacks 3 | . 3 . . . . . . . . Report Inventory 1 | . 1 . . . . . . . . Retrieve Matter 1 | . 1 . . . . . . . . Retrieve Components 1 | . 1 . . . . . . . . Scanalyzer . | . . . . . . . . . . Garrison Access Hacks 2 | . . . . . . . 2 . . Unlock Access 1 | . . . . . . . 1 . . Coupler Status 1 | . . . . . . . 1 . . Unauthorized Hacks 45 | . 6 . 17 . . 1 17 . 4 Terminals 43 | . 6 . 16 . . 1 16 . 4 Track 8 | . 1 . 4 . . 1 2 . . Assimilate 8 | . . . 4 . . . 3 . 1 Botnet 23 | . 5 . 7 . . . 9 . 2 Disrupt 1 | . . . . . . . 1 . . Operators 3 | . . . 1 . . . 1 . 1 Fabricators . | . . . . . . . . . . Repair Stations 2 | . . . 1 . . . 1 . . Mechanics 2 | . . . 1 . . . 1 . . Recycling Units . | . . . . . . . . . . Scanalyzers . | . . . . . . . . . . Garrison Access . | . . . . . . . . . . Data Cores Recovered 1 | . . . 1 . . . . . . Used . | . . . . . . . . . . Hacking Detections 33 | . 8 . 10 . . 1 12 . 2 Full Trace Events . | . . . . . . . . . . Feedback Events . | . . . . . . . . . . Feedback Blocked . | . . . . . . . . . . Robot Schematics Acquired . | . . . . . . . . . . Robots Built . | . . . . . . . . . . Matter . | . . . . . . . . . . Time . | . . . . . . . . . . Total Robot Build Rating . | . . . . . . . . . . Part Schematics Acquired . | . . . . . . . . . . Parts Built . | . . . . . . . . . . Matter . | . . . . . . . . . . Time . | . . . . . . . . . . Total Part Build Rating . | . . . . . . . . . . Parts Repaired . | . . . . . . . . . . Time . | . . . . . . . . . . Parts Recycled . | . . . . . . . . . . Recycled Matter . | . . . . . . . . . . Retrieved Matter . | . . . . . . . . . . Retrieved Components 2 | . 2 . . . . . . . . Parts Scanalyzed . | . . . . . . . . . . Part Schematics Acquired . | . . . . . . . . . . Parts Damaged . | . . . . . . . . . . Bothacking | -11 -10 -10 -9 -9 -9 -8 -8 -8 -8 ------------ Run | Scr Mat Min Mat Min Exi Min Mat Gar Mat Used RIF Installer 1 | . . . . . . . . 1 . Robots Hacked 5 | . . . . . . . . 5 . Non-combat . | . . . . . . . . . . Combat 5 | . . . . . . . . 5 . Robot Hacks Applied 5 | . . . . . . . . 5 . formatsys_high 5 | . . . . . . . . 5 . Relay Couplers Released 4 | . . . . . . . . 4 . Machine Destruction 4 | . . . . . . . . 4 . Attached 2 | . . . . . . . . 2 . Robots Rewired . | . . . . . . . . . . Allies Hacked . | . . . . . . . . . . Hacks Repelled . | . . . . . . . . . . Allies | -11 -10 -10 -9 -9 -9 -8 -8 -8 -8 -------- Run | Scr Mat Min Mat Min Exi Min Mat Gar Mat Total Allies 13 | . . . 2 2 . . 3 5 1 Largest Group 6 | . . . 2 4 . . 1 5 6 Highest-Rated Group 68 | . . . 20 68 . . 10 25 35 Highest-Rated Ally 31 | . . . 10 31 . . 10 10 10 Total Orders 5 | . . . . . . . . 2 3 STAY 3 | . . . . . . . . 1 2 FOLLOW 2 | . . . . . . . . 1 1 Ally Attacks 8 | . . . . 7 . . . 1 . Total Damage 85 | . . . . 85 . . . . . Kills 3 | . . . . 3 . . . . . Allies Corrupted . | . . . . . . . . . . Allies Melted . | . . . . . . . . . . Intel | -11 -10 -10 -9 -9 -9 -8 -8 -8 -8 ------- Run | Scr Mat Min Mat Min Exi Min Mat Gar Mat Robot Analysis Total 3 | . . . 2 . . . 1 . . Derelict Logs Recovered 3 | . . 2 . 1 . . . . . Drone Launches . | . . . . . . . . . . Drone Recoveries . | . . . . . . . . . . Exploration | -11 -10 -10 -9 -9 -9 -8 -8 -8 -8 ------------- Run | Scr Mat Min Mat Min Exi Min Mat Gar Mat Turns Passed 5637 | 42 1440 485 1737 301 85 223 688 510 126 Spaces Moved 8855 | 39 1578 588 2671 810 314 538 1204 858 255 Core 17 | 17 . . . . . . . . . Treads . | . . . . . . . . . . Legs . | . . . . . . . . . . Wheels 145 | 22 123 . . . . . . . . Hover 2731 | . 1455 588 688 . . . . . . Flight 5962 | . . . 1983 810 314 538 1204 858 255 Fastest Speed 26 | 50 56 56 26 26 27 27 27 27 27 Average Speed 37 | 93 59 56 33 26 27 27 27 27 27 Slowest Speed 105 | 100 100 56 105 29 27 27 27 99 27 Overloaded Moves . | . . . . . . . . . . Propulsion Burnouts . | . . . . . . . . . . Robots Hopped 75 | . . . 35 16 . 4 19 . 1 Cave-ins Triggered 1 | . . . 1 . . . . . . Exploration Rate (%) 76 | 3 99 98 99 96 79 95 94 78 28 Regions Visited 9 Branch Regions 4 Pre-discovered Areas 3 | . . 1 . 2 . . . . . Known Exits Taken 7 | . 1 1 1 1 1 1 1 . . Unknown Exits Taken 1 | 1 . . . . . . . . . Scrap Searched 4 | . . 2 . 1 . 1 . . . Spaces Dug 3 | . . . 3 . . . . . . Terrain Destroyed 398 | . 209 27 44 2 . . 44 15 57 Melee 3 | . . . 3 . . . . . . Projectile 3 | . . . . 2 . . . 1 . AOE 392 | . 209 27 41 . . . 44 14 57 Terrain Rammed . | . . . . . . . . . . Walls Destroyed . | . . . . . . . . . . Machines Disabled . | . . . . . . . . . . Actions | -11 -10 -10 -9 -9 -9 -8 -8 -8 -8 --------- Run | Scr Mat Min Mat Min Exi Min Mat Gar Mat Total 10118 | 42 1866 665 3106 839 313 567 1377 1041 302 Wait 420 | 1 65 27 175 8 . 8 37 60 39 Move 8697 | 38 1577 587 2599 778 313 529 1167 856 253 Hop 72 | . . . 35 15 . 4 17 . 1 Pick Up 15 | . 3 . 4 . . 1 3 4 . Fast Attach 35 | 3 12 . 11 3 . 1 3 2 . Attach 3 | . . . . . . . 1 2 . Detach 1 | . . . . . . . 1 . . Swap 22 | . 1 . 5 . . . 5 9 2 Drop 27 | . 8 . 9 2 . 2 5 1 . Fire 580 | . 187 39 178 18 . 22 87 42 7 Melee 15 | . . . 3 . . . . 12 . Ram 1 | . . . 1 . . . . . . Kick . | . . . . . . . . . . Crush . | . . . . . . . . . . Escape Stasis 30 | . . . 1 . . . . 29 . Rewire 1 | . . . . . . . . 1 . Trap 18 | . . . 6 . . . . 12 . Miscellaneous 181 | . 13 12 79 15 . . 51 11 . Route ------- -11/Scrapyard -10/Materials (discovered 5 exits: *Mat x3 / *Min x2) -10/Mines (discovered 2 exits: *Mat x2) -9/Materials (discovered 5 exits: *Mat x3 / *Min x2) -9/Mines (discovered 3 exits: *Mat x2 / *Exi) -9/Exiles -8/Mines (discovered 2 exits: *Mat x2) -8/Materials (discovered 6 exits: *Fac x3 / *Sto x2 / Gar) -8/Garrison (discovered 3 exits: *Mat x3) -8/Materials History --------- Turn | Location | Event 11 | -11/Scrapyard | Discovered new exit (range 16) 43 | -11/Scrapyard | Entered Materials 65 | -10/Materials | Discovered new exit (range 10) 159 | -10/Materials | Upgraded with Utility slot (x1) 273 | -10/Materials | Discovered new exit (range 16) 307 | -10/Materials | Upgraded with Propulsion slot (x1) 316 | -10/Materials | Upgraded with Weapon slot (x1) 338 | -10/Materials | Build established: Mutant 468 | -10/Materials | Discovered new exit (range 16) 560 | -10/Materials | Discovered new exit (range 9) 591 | -10/Materials | Identified exit to Materials 614 | -10/Materials | Reached level 2 922 | -10/Materials | Reached level 3 987 | -10/Materials | Discovered exit to Materials (range 15) 1381 | -10/Materials | Upgraded with Utility slot (x1) 1431 | -10/Materials | Identified exit to Mines 1483 | -10/Materials | Entered Mines 1485 | -10/Mines | Reached level 4 1487 | -10/Mines | Learned location of 1 exit from Materials 1494 | -10/Mines | Met a Derelict bent on vengeance 1546 | -10/Mines | Discovered exit to Materials (range 6) 1597 | -10/Mines | Core integrity fell below 50% 1750 | -10/Mines | Reached level 5 1766 | -10/Mines | Learned location of Storage (-8) 1813 | -10/Mines | Discovered exit to Materials (range 10) 1968 | -10/Mines | Entered Materials 1969 | -9/Materials | Identified exit to Materials 1970 | -9/Materials | Reached level 6 2018 | -9/Materials | Upgraded with Utility slot (x1) 2092 | -9/Materials | Core integrity fell below 50% 2199 | -9/Materials | Reached level 7 2332 | -9/Materials | Build established: Hacker-Mutant 2413 | -9/Materials | Discovered new exit (range 15) 2511 | -9/Materials | Reached level 8 2674 | -9/Materials | Upgraded with Propulsion slot (x1) 2677 | -9/Materials | Upgraded with Propulsion slot (x1) 2683 | -9/Materials | Upgraded with Power slot (x1) 2780 | -9/Materials | Discovered exit to Materials (range 10) 2953 | -9/Materials | Reached level 9 2967 | -9/Materials | Build established: Hacker-Sprinter 3059 | -9/Materials | Crushed by falling debris 3168 | -9/Materials | First assault squad dispatched 3286 | -9/Materials | Discovered new exit (range 15) 3417 | -9/Materials | Reached level 10 3614 | -9/Materials | Discovered exit to Materials (range 6) 3616 | -9/Materials | Central database locked down 3641 | -9/Materials | Identified exit to Mines 3705 | -9/Materials | Entered Mines 3705 | -9/Mines | Accompanied by 2 allies 3723 | -9/Mines | Met a Derelict who couldn't figure out how to use a Trap Extractor 3752 | -9/Mines | Discovered exit to Materials (range 7) 3803 | -9/Mines | Discovered exit to Materials (range 3) 3818 | -9/Mines | Upgraded with Utility slot (x1) 3842 | -9/Mines | Deemed a non-threat by the Exiles lab entrance 3843 | -9/Mines | Discovered new exit (range 5) 3843 | -9/Mines | Identified exit to Exiles 3882 | -9/Mines | Assembled infested the area 3885 | -9/Mines | A weapon hastily lodged in a ceiling crevice suddenly fell to the ground 4006 | -9/Mines | Entered Exiles 4013 | -9/Exiles | Met 8R-AWN 4018 | -9/Exiles | Met EX-HEX 4027 | -9/Exiles | Met EX-BIN 4031 | -9/Exiles | Met EX-DEC 4049 | -9/Exiles | Visited The Gauntlet 4086 | -9/Exiles | Discovered new exit (range 10) 4088 | -9/Exiles | Identified exit to Mines 4091 | -9/Exiles | Entered Mines 4119 | -8/Mines | Discovered exit to Materials (range 7) 4149 | -8/Mines | Reached level 11 4244 | -8/Mines | Discovered exit to Materials (range 9) 4314 | -8/Mines | Entered Materials 4316 | -8/Materials | Reached level 12 4323 | -8/Materials | Upgraded with Utility slot (x1) 4332 | -8/Materials | Discovered new exit (range 13) 4357 | -8/Materials | Identified exit to Storage 4437 | -8/Materials | Discovered new exit (range 15) 4551 | -8/Materials | Reached level 13 4629 | -8/Materials | Discovered new exit (range 9) 4631 | -8/Materials | Identified exit to Factory 4644 | -8/Materials | Build established: Wizard-Sprinter 4671 | -8/Materials | Core integrity fell below 50% 4745 | -8/Materials | Discovered exit to Factory (range 9) 5001 | -8/Materials | Identified exit to Garrison 5002 | -8/Materials | Entered Garrison 5002 | -8/Garrison | Accompanied by 1 ally 5034 | -8/Garrison | Garrison Relay disabled 5044 | -8/Garrison | Triggered checkpoint 5090 | -8/Garrison | Triggered checkpoint 5098 | -8/Garrison | Triggered checkpoint 5100 | -8/Garrison | Triggered checkpoint 5133 | -8/Garrison | Reached level 14 5177 | -8/Garrison | Core integrity fell below 20% 5207 | -8/Garrison | Discovered new exit (range 10) 5224 | -8/Garrison | Identified exit to Materials 5226 | -8/Garrison | Installed Relay Interface Framework 5253 | -8/Garrison | Upgraded with Utility slot (x1) 5283 | -8/Garrison | Discovered exit to Materials (range 12) 5299 | -8/Garrison | Garrison Relay disabled 5306 | -8/Garrison | Triggered checkpoint 5324 | -8/Garrison | Discovered exit to Materials (range 15) 5344 | -8/Garrison | Triggered checkpoint 5344 | -8/Garrison | Upgraded with Utility slot (x1) 5412 | -8/Garrison | Garrison Relay disabled 5430 | -8/Garrison | Triggered checkpoint 5512 | -8/Garrison | Entered Materials 5512 | -8/Materials | Accompanied by 5 allies 5638 | -8/Materials | Destroyed by G-47 Trooper with Particle Gun Last Messages --------------- 05564_ W-25 Informer sends out distress signal. 05577_ K-01 Serf destroyed. 05577_ S-10 Pest destroyed. 05577_ Destroyed Lgt. Ion Engine. 05577_ S-10 Pest destroyed. 05577_ U-05 Engineer destroyed. 05577_ S-10 Pest destroyed. 05577_ ALERT: Construction progress impeded, dispatching reinforcements to local area. 05577_ U-05 Engineer builds a Wall. 05581_ U-05 Engineer lays Concrete. 05585_ The unstable cave ceiling collapses. 05586_ U-05 Engineer lays Concrete. 05587_ The unstable cave ceiling collapses. 05587_ U-05 Engineer lays Concrete. 05590_ K-01 Serf collects debris. 05590_ U-05 Engineer lays Concrete. 05607_ U-05 Engineer builds a Wall. 05609_ K-01 Serf collects debris. [Achievement: Achiever] Map ----- +----------------------------------------------------+ | ???????????????????????????# # | | ???????????????????????????# ! # | | ???????????????? ??????????########### | | ???????????????? #???????????# # | | ???????????????? #??####??#### # | | ?????????#+##### #??# ?? # # | | ?????????# ##?# ! """ # !!! # | | ?????????#= ""?# """ # !!! # | | ?????????# "" [ T"?# """ # !! # | | ?????????# "T ""?# # + | | ?????????# "" #??# """ # """ # | | ??######## #??# """ # """ # | | ? # [ #??# """ # """ # | | # """ # !! #??# # # | | # """ # !! ########/## ## # | | # """ # ! [ % | | # + ! ! * | | # "# | | # T### ########### # ## # | | # "#?# #?????????# # | | # #?# #?????????# # !!!/ | | ############+####?###### # !!!!/ | | ????# #? ### ##### | | ????# = # #?# #???? | | ????# # a #?#### ###???? | | ????# """ """ @ g###+####????###?????? | | ????# """ """ # g#???????????????????? | | ????# """ """ # #???????????????????? | | ????# / #? #???????????????????? | | ?????############? #???????????????????? | | ??????????????????? #???????????????????? | | ??????????????????? #???????????????????? | | ????????????????????#???????????????????? | | ????????????????????????????????????????? | | ????????????????????????????????????????? | | ????????????????????????????????????????? | | ????????????????????????????????????????? | | ????????????????????????????????????????? | | ????????????????????????????????????????? | | ????????????????????????????????????????? | | ????????????????????????????????????????? | | ????????????????????????????????????????? | | ????????????????????????????????????????? | | ????????????????????????????????????????? | | ????????????????????????????????????????? | | ????????????????????????????????????????? | | ????????????????????????????????????????? | | ????????????????????????????????????????? | | ????????????????????????????????????????? | | ????????????????????????????????????????? | +----------------------------------------------------+ Best States ------------- Heat Dissipation 55 Energy Generation 34 Energy Capacity 315 Matter Stores 300 Matter Capacity 300 Sight Range 16 Robot Scan Range 10 Terrain Scan Density 10 ECM Strength 1 Evasion (%) 64 Offensive Hacking 60 Relay Coupler Types 99 Relay Coupler Value 2 Item Schematics ----------------- None Robot Schematics ------------------ None Fabricated ------------ Nothing Alien Tech Used ----------------- None Achievements -------------- Achiever Assimilation Complete I Survived The Infestation root@ Challenges ------------ None RPGLIKE | -11 -10 -10 -9 -9 -9 -8 -8 -8 -8 --------- Run | Scr Mat Min Mat Min Exi Min Mat Gar Mat Levels Raised 13 | . 2 2 5 . . 1 2 1 . XP Earned 23185 | 3000 4140 2300 7302 642 67 1255 3369 955 155 XP Spent 20160 | . 3900 . 7700 1400 . . 1700 5460 . Upgrades 34 | . 13 . 12 1 . . 1 7 . Power Slot 1 | . . . 1 . . . . . . Propulsion Slot 3 | . 1 . 2 . . . . . . Utility Slot 7 | . 2 . 1 1 . . 1 2 . Weapon Slot 1 | . 1 . . . . . . . . Core Integrity 4 | . . . . . . . . 4 . Heat Dissipation 5 | . 5 . . . . . . . . Energy Generation 2 | . 1 . 1 . . . . . . Mass Support 1 | . 1 . . . . . . . . Inventory Capacity 4 | . 2 . 1 . . . . 1 . Ranged Accuracy 2 | . . . 2 . . . . . . Hack Attack % 4 | . . . 4 . . . . . . Protomatter Created 1445 | . 141 95 642 89 . 11 375 92 . Integrity Restored 3857 | . 207 285 1679 325 . . 1121 240 . Core 3572 | . 170 285 1575 223 . . 1079 240 . Parts 285 | . 37 . 104 102 . . 42 . . Protomatter Decayed 197 | . 36 . 80 26 . 11 . 44 . Game ------ Seed AutogunScatterAxe Manual? 0 Play Time 02:12:06 Cumulative 17.9 hours Start 2021.05.12 @ 12:58:07 End 2021.05.12 @ 16:34:34 Sessions 1 Manual Loads 0 Difficulty Rogue Special Mode Winter2019/RPGLIKE Game No. 9 Rogue 9 Adventurer 0 Explorer 0 Win Type - Total 0 Types 0/0/0/0/0/0/0/0/0 Lore% 19 Gallery% 14 Achievement% 26 Wizard Run 0 Options --------- ASCII 0 Keyboard 0 Movement Numpad Keybinds 0 Fullscreen 1 Font 24/Terminus Map View 76x50 Tactical HUD 1 Map Filters NONE Filters NONE Steam 1 RUN: 5edc4d15-9292-419b-b009-d6a93dd976eb